[Event "Titled Tuesday Blitz March 07 Late 2023"]
[White "Vachier-Lagrave, Maxime"]
[Black "Zhigalko, Sergei"]
[WhiteFideId "623539"]
[BlackFideId "13502956"]
[WhiteElo "2740"]
[BlackElo "2626"]
[Result "1-0"]
[Round "05"]
[TimeControl "180+2"]
[Date "2023.03.07"]
[WhiteClock "0:00:33"]
[BlackClock "0:00:02"]

1. e4 {[%clk 0:02:56]}  c5 {[%clk 0:03:00]} 2. Nf3 {[%clk 0:02:56]}  Nc6 {[%clk 0:02:59]} 3. Bb5 {[%clk 0:02:55]}  Nf6 {[%clk 0:02:59]} 4. Nc3 {[%clk 0:02:55]}  Qc7 {[%clk 0:02:58]} 5. O-O {[%clk 0:02:53]}  Nd4 {[%clk 0:02:58]} 6. Ba4 {[%clk 0:02:53]}  e6 {[%clk 0:02:49]} 7. Re1 {[%clk 0:02:45]}  Ng4 {[%clk 0:02:45]} 8. e5 {[%clk 0:02:35]}  Nxf3+ {[%clk 0:02:13]} 9. Qxf3 {[%clk 0:02:36]}  Nxe5 {[%clk 0:02:14]} 10. Qg3 {[%clk 0:02:35]}  f6 {[%clk 0:01:47]} 11. d3 {[%clk 0:02:35]}  a6 {[%clk 0:01:35]} 12. f4 {[%clk 0:02:26]}  Nc6 {[%clk 0:01:34]} 13. Nd5 {[%clk 0:02:25]}  Qa5 {[%clk 0:01:26]} 14. Bb3 {[%clk 0:01:43]}  Nd4 {[%clk 0:01:19]} 15. Be3 {[%clk 0:01:39]}  Nf5 {[%clk 0:01:09]} 16. Qh3 {[%clk 0:01:29]}  Nxe3 {[%clk 0:00:48]} 17. Nxe3 {[%clk 0:01:30]}  c4 {[%clk 0:00:22]} 18. Nxc4 {[%clk 0:01:26]}  Qc5+ {[%clk 0:00:21]} 19. Kh1 {[%clk 0:01:26]}  Be7 {[%clk 0:00:19]} 20. f5 {[%clk 0:01:24]}  e5 {[%clk 0:00:15]} 21. d4 {[%clk 0:01:15]}  Qxd4 {[%clk 0:00:14]} 22. Rad1 {[%clk 0:01:15]}  Qc5 {[%clk 0:00:15]} 23. Qh5+ {[%clk 0:01:13]}  Kd8 {[%clk 0:00:15]} 24. Qf7 {[%clk 0:01:11]}  b5 {[%clk 0:00:14]} 25. Ne3 {[%clk 0:01:05]}  Bb7 {[%clk 0:00:08]} 26. Bd5 {[%clk 0:01:04]}  Ra7 {[%clk 0:00:07]} 27. Qxg7 {[%clk 0:01:02]}  Rf8 {[%clk 0:00:07]} 28. c3 {[%clk 0:01:00]}  Bc8 {[%clk 0:00:05]} 29. Qxh7 {[%clk 0:00:58]}  b4 {[%clk 0:00:04]} 30. c4 {[%clk 0:00:54]}  a5 {[%clk 0:00:05]} 31. Be4 {[%clk 0:00:52]}  a4 {[%clk 0:00:05]} 32. Rd5 {[%clk 0:00:51]}  Qb6 {[%clk 0:00:05]} 33. Rd3 {[%clk 0:00:50]}  b3 {[%clk 0:00:05]} 34. a3 {[%clk 0:00:49]}  Qc5 {[%clk 0:00:05]} 35. Qh4 {[%clk 0:00:43]}  Ba6 {[%clk 0:00:04]} 36. Bd5 {[%clk 0:00:43]}  Rc7 {[%clk 0:00:03]} 37. Qe4 {[%clk 0:00:43]}  Qb6 {[%clk 0:00:03]} 38. Red1 {[%clk 0:00:38]}  Kc8 {[%clk 0:00:03]} 39. Be6 {[%clk 0:00:36]}  dxe6 {[%clk 0:00:02]} 40. Qa8+ {[%clk 0:00:36]}  Qb8 {[%clk 0:00:01]} 41. Qxa6+ {[%clk 0:00:37]}  Qb7 {[%clk 0:00:01]} 42. Qxe6+ {[%clk 0:00:37]}  Kb8 {[%clk 0:00:02]} 43. Nd5 {[%clk 0:00:35]}  Rg8 {[%clk 0:00:02]} 44. Qxg8+ {[%clk 0:00:33]} 1-0


[Site "https://www.chess.com"]

[Event "Titled Tuesday Blitz March 07 Late 2023"]
[White "Yuan, Qingyu"]
[Black "Andreikin, Dmitry"]
[WhiteFideId "8609772"]
[BlackFideId "4158814"]
[WhiteElo "2359"]
[BlackElo "2736"]
[Result "0-1"]
[Round "05"]
[TimeControl "180+2"]
[Date "2023.03.07"]
[WhiteClock "0:00:02"]
[BlackClock "0:00:06"]

1. e4 {[%clk 0:03:00]}  e6 {[%clk 0:03:00]} 2. d4 {[%clk 0:03:00]}  d5 {[%clk 0:03:01]} 3. Nd2 {[%clk 0:03:01]}  c5 {[%clk 0:03:00]} 4. Ngf3 {[%clk 0:02:59]}  cxd4 {[%clk 0:02:59]} 5. Nxd4 {[%clk 0:02:55]}  Nc6 {[%clk 0:02:58]} 6. Bb5 {[%clk 0:02:54]}  Bd7 {[%clk 0:02:58]} 7. Nxc6 {[%clk 0:02:54]}  bxc6 {[%clk 0:02:58]} 8. Bd3 {[%clk 0:02:55]}  Ne7 {[%clk 0:02:57]} 9. O-O {[%clk 0:02:50]}  Qb8 {[%clk 0:02:54]} 10. Qe2 {[%clk 0:02:40]}  Ng6 {[%clk 0:02:53]} 11. Nf3 {[%clk 0:02:38]}  Bd6 {[%clk 0:02:49]} 12. c4 {[%clk 0:02:31]}  O-O {[%clk 0:02:44]} 13. b3 {[%clk 0:02:14]}  a5 {[%clk 0:02:25]} 14. Rd1 {[%clk 0:02:06]}  a4 {[%clk 0:02:20]} 15. Rb1 {[%clk 0:01:37]}  axb3 {[%clk 0:02:17]} 16. axb3 {[%clk 0:01:27]}  Re8 {[%clk 0:02:16]} 17. h3 {[%clk 0:01:20]}  c5 {[%clk 0:02:04]} 18. Qc2 {[%clk 0:00:58]}  d4 {[%clk 0:01:59]} 19. Bd2 {[%clk 0:00:51]}  Bf4 {[%clk 0:01:48]} 20. Be1 {[%clk 0:00:48]}  e5 {[%clk 0:01:43]} 21. Ra1 {[%clk 0:00:45]}  Bh6 {[%clk 0:01:39]} 22. Bf1 {[%clk 0:00:40]}  Nf4 {[%clk 0:01:37]} 23. Rxa8 {[%clk 0:00:33]}  Qxa8 {[%clk 0:01:37]} 24. Bd2 {[%clk 0:00:29]}  Bc6 {[%clk 0:01:32]} 25. Re1 {[%clk 0:00:28]}  f6 {[%clk 0:01:21]} 26. Bxf4 {[%clk 0:00:22]}  Bxf4 {[%clk 0:01:20]} 27. Bd3 {[%clk 0:00:22]}  Qa5 {[%clk 0:01:19]} 28. Rb1 {[%clk 0:00:19]}  Ra8 {[%clk 0:01:18]} 29. Rb2 {[%clk 0:00:14]}  Qc3 {[%clk 0:01:11]} 30. g3 {[%clk 0:00:11]}  Ra1+ {[%clk 0:01:04]} 31. Kg2 {[%clk 0:00:10]}  Bh6 {[%clk 0:00:45]} 32. Qxc3 {[%clk 0:00:10]}  dxc3 {[%clk 0:00:46]} 33. Rc2 {[%clk 0:00:11]}  f5 {[%clk 0:00:26]} 34. Nxe5 {[%clk 0:00:09]}  fxe4 {[%clk 0:00:26]} 35. Be2 {[%clk 0:00:07]}  Bb7 {[%clk 0:00:25]} 36. Bg4 {[%clk 0:00:04]}  Bd2 {[%clk 0:00:21]} 37. Be6+ {[%clk 0:00:05]}  Kf8 {[%clk 0:00:21]} 38. Bd5 {[%clk 0:00:05]}  Bxd5 {[%clk 0:00:18]} 39. cxd5 {[%clk 0:00:06]}  Ke7 {[%clk 0:00:12]} 40. d6+ {[%clk 0:00:03]}  Ke6 {[%clk 0:00:08]} 41. d7 {[%clk 0:00:03]}  Ke7 {[%clk 0:00:09]} 42. Nc4 {[%clk 0:00:03]}  Rd1 {[%clk 0:00:09]} 43. Ra2 {[%clk 0:00:02]}  Kxd7 {[%clk 0:00:09]} 44. Nxd2 {[%clk 0:00:01]}  cxd2 {[%clk 0:00:07]} 45. Rc2 {[%clk 0:00:02]}  Rg1+ {[%clk 0:00:06]} 0-1


[Site "https://www.chess.com"]

[Event "Titled Tuesday Blitz March 07 Late 2023"]
[White "Bortnyk, Olexandr"]
[Black "Maksimovic, Bojan"]
[WhiteFideId "14120828"]
[BlackFideId "14408120"]
[WhiteElo "2734"]
[BlackElo "2468"]
[Result "1-0"]
[Round "05"]
[TimeControl "180+2"]
[Date "2023.03.07"]
[WhiteClock "0:00:30"]
[BlackClock "0:00:01"]

1. d4 {[%clk 0:03:00]}  Nf6 {[%clk 0:02:59]} 2. Nc3 {[%clk 0:02:58]}  g6 {[%clk 0:02:59]} 3. e4 {[%clk 0:02:56]}  d5 {[%clk 0:02:53]} 4. e5 {[%clk 0:02:53]}  Ne4 {[%clk 0:02:54]} 5. Nce2 {[%clk 0:02:50]}  f6 {[%clk 0:02:54]} 6. Ng3 {[%clk 0:02:13]}  fxe5 {[%clk 0:02:33]} 7. dxe5 {[%clk 0:02:12]}  Nxg3 {[%clk 0:02:10]} 8. hxg3 {[%clk 0:02:13]}  Nc6 {[%clk 0:02:09]} 9. Bf4 {[%clk 0:01:58]}  Bg7 {[%clk 0:02:06]} 10. Nf3 {[%clk 0:01:58]}  Bg4 {[%clk 0:01:57]} 11. Bb5 {[%clk 0:01:57]}  O-O {[%clk 0:01:51]} 12. Bxc6 {[%clk 0:01:55]}  bxc6 {[%clk 0:01:50]} 13. Qd2 {[%clk 0:01:55]}  Bxf3 {[%clk 0:01:46]} 14. gxf3 {[%clk 0:01:56]}  e6 {[%clk 0:00:56]} 15. O-O-O {[%clk 0:01:52]}  Qd7 {[%clk 0:00:52]} 16. Rh4 {[%clk 0:01:45]}  Rf7 {[%clk 0:00:31]} 17. Rdh1 {[%clk 0:01:44]}  Bf8 {[%clk 0:00:32]} 18. Qd3 {[%clk 0:01:45]}  Rg7 {[%clk 0:00:20]} 19. Bh6 {[%clk 0:01:42]}  Rf7 {[%clk 0:00:19]} 20. Bg5 {[%clk 0:01:42]}  Be7 {[%clk 0:00:07]} 21. Qxg6+ {[%clk 0:01:20]}  Rg7 {[%clk 0:00:07]} 22. Qxg7+ {[%clk 0:01:20]}  Kxg7 {[%clk 0:00:08]} 23. Rxh7+ {[%clk 0:01:21]}  Kg6 {[%clk 0:00:08]} 24. Bxe7 {[%clk 0:01:03]}  Rg8 {[%clk 0:00:01]} 25. R1h6+ {[%clk 0:00:49]}  Kf5 {[%clk 0:00:01]} 26. Bf6 {[%clk 0:00:35]}  Qe8 {[%clk 0:00:02]} 27. Rh5+ {[%clk 0:00:34]}  Kg6 {[%clk 0:00:01]} 28. g4 {[%clk 0:00:30]}  c5 {[%clk 0:00:01]} 29. R5h6# {[%clk 0:00:30]} 1-0


[Site "https://www.chess.com"]

[Event "Titled Tuesday Blitz March 07 Late 2023"]
[White "Bluebaum, Matthias"]
[Black "Fier, Alexandr"]
[WhiteFideId "24651516"]
[BlackFideId "2107139"]
[WhiteElo "2638"]
[BlackElo "2610"]
[Result "1/2-1/2"]
[Round "05"]
[TimeControl "180+2"]
[Date "2023.03.07"]
[WhiteClock "0:00:20"]
[BlackClock "0:00:52"]

1. d4 {[%clk 0:03:00]}  Nf6 {[%clk 0:02:57]} 2. c4 {[%clk 0:03:01]}  e6 {[%clk 0:02:58]} 3. Nc3 {[%clk 0:03:01]}  Bb4 {[%clk 0:02:57]} 4. e3 {[%clk 0:02:58]}  O-O {[%clk 0:02:56]} 5. Bd2 {[%clk 0:02:58]}  c5 {[%clk 0:02:53]} 6. a3 {[%clk 0:02:57]}  Bxc3 {[%clk 0:02:53]} 7. Bxc3 {[%clk 0:02:57]}  Ne4 {[%clk 0:02:53]} 8. Ne2 {[%clk 0:02:58]}  Nxc3 {[%clk 0:02:53]} 9. Nxc3 {[%clk 0:02:58]}  d6 {[%clk 0:02:50]} 10. dxc5 {[%clk 0:02:56]}  dxc5 {[%clk 0:02:50]} 11. Qc2 {[%clk 0:02:57]}  Nc6 {[%clk 0:02:49]} 12. Bd3 {[%clk 0:02:57]}  h6 {[%clk 0:02:49]} 13. O-O-O {[%clk 0:02:57]}  Qa5 {[%clk 0:02:43]} 14. f4 {[%clk 0:02:55]}  a6 {[%clk 0:02:42]} 15. g4 {[%clk 0:02:54]}  b5 {[%clk 0:02:35]} 16. Bh7+ {[%clk 0:02:07]}  Kh8 {[%clk 0:02:34]} 17. Be4 {[%clk 0:02:08]}  Bb7 {[%clk 0:02:28]} 18. Rd7 {[%clk 0:02:06]}  Qb6 {[%clk 0:02:22]} 19. Qg2 {[%clk 0:01:59]}  Rad8 {[%clk 0:02:10]} 20. Rxb7 {[%clk 0:01:51]}  Qxb7 {[%clk 0:02:11]} 21. Bxc6 {[%clk 0:01:51]}  Qb6 {[%clk 0:02:10]} 22. g5 {[%clk 0:01:42]}  b4 {[%clk 0:02:01]} 23. gxh6 {[%clk 0:01:43]}  gxh6 {[%clk 0:01:55]} 24. Qh3 {[%clk 0:01:18]}  Kh7 {[%clk 0:01:49]} 25. Ne4 {[%clk 0:01:13]}  Qxc6 {[%clk 0:00:57]} 26. Nf6+ {[%clk 0:01:05]}  Kg6 {[%clk 0:00:53]} 27. Rg1+ {[%clk 0:01:05]}  Kxf6 {[%clk 0:00:54]} 28. Qh4+ {[%clk 0:01:06]}  Kf5 {[%clk 0:00:54]} 29. Qg4+ {[%clk 0:01:07]}  Kf6 {[%clk 0:00:54]} 30. Qh4+ {[%clk 0:00:56]}  Kf5 {[%clk 0:00:54]} 31. Qg4+ {[%clk 0:00:21]}  Kf6 {[%clk 0:00:52]} 32. Qh4+ {[%clk 0:00:20]} 1/2-1/2


[Site "https://www.chess.com"]

[Event "Titled Tuesday Blitz March 07 Late 2023"]
[White "Hamidi, Amir Mohammad"]
[Black "Kramnik, Vladimir"]
[WhiteFideId "12563285"]
[BlackFideId "4101588"]
[WhiteElo "2228"]
[BlackElo "2712"]
[Result "1/2-1/2"]
[Round "05"]
[TimeControl "180+2"]
[Date "2023.03.07"]
[WhiteClock "0:01:37"]
[BlackClock "0:01:04"]

1. d4 {[%clk 0:03:00]}  Nf6 {[%clk 0:02:59]} 2. c4 {[%clk 0:02:59]}  e6 {[%clk 0:02:58]} 3. Nc3 {[%clk 0:02:59]}  d5 {[%clk 0:02:58]} 4. Bg5 {[%clk 0:02:58]}  Be7 {[%clk 0:02:57]} 5. e3 {[%clk 0:02:58]}  h6 {[%clk 0:02:57]} 6. Bh4 {[%clk 0:02:58]}  O-O {[%clk 0:02:56]} 7. Nf3 {[%clk 0:02:59]}  Nbd7 {[%clk 0:02:56]} 8. Rc1 {[%clk 0:02:58]}  c5 {[%clk 0:02:55]} 9. cxd5 {[%clk 0:02:58]}  Nxd5 {[%clk 0:02:52]} 10. Bxe7 {[%clk 0:02:59]}  Nxe7 {[%clk 0:02:52]} 11. Be2 {[%clk 0:02:58]}  b6 {[%clk 0:02:52]} 12. O-O {[%clk 0:02:58]}  Bb7 {[%clk 0:02:52]} 13. a3 {[%clk 0:02:54]}  a6 {[%clk 0:02:46]} 14. dxc5 {[%clk 0:02:52]}  Nxc5 {[%clk 0:02:45]} 15. b4 {[%clk 0:02:51]}  Nd7 {[%clk 0:02:38]} 16. Qb3 {[%clk 0:02:48]}  Nd5 {[%clk 0:02:32]} 17. Rfd1 {[%clk 0:02:47]}  Qe7 {[%clk 0:02:30]} 18. Nxd5 {[%clk 0:02:42]}  Bxd5 {[%clk 0:02:29]} 19. Bc4 {[%clk 0:02:43]}  Bxf3 {[%clk 0:02:28]} 20. gxf3 {[%clk 0:02:42]}  Nf6 {[%clk 0:02:13]} 21. Be2 {[%clk 0:02:36]}  b5 {[%clk 0:02:10]} 22. f4 {[%clk 0:02:33]}  Rac8 {[%clk 0:02:08]} 23. Bf3 {[%clk 0:02:33]}  g5 {[%clk 0:02:05]} 24. fxg5 {[%clk 0:02:32]}  hxg5 {[%clk 0:02:05]} 25. Qb2 {[%clk 0:02:33]}  e5 {[%clk 0:02:01]} 26. Rxc8 {[%clk 0:02:33]}  Rxc8 {[%clk 0:02:00]} 27. Rc1 {[%clk 0:02:33]}  Rxc1+ {[%clk 0:01:56]} 28. Qxc1 {[%clk 0:02:34]}  e4 {[%clk 0:01:56]} 29. Be2 {[%clk 0:02:34]}  Qe6 {[%clk 0:01:51]} 30. Qc3 {[%clk 0:02:28]}  Kh7 {[%clk 0:01:49]} 31. Qd4 {[%clk 0:02:25]}  Kg6 {[%clk 0:01:49]} 32. Kg2 {[%clk 0:02:24]}  Qb3 {[%clk 0:01:43]} 33. Qa1 {[%clk 0:02:18]}  Qc2 {[%clk 0:01:37]} 34. Kf1 {[%clk 0:02:10]}  Nd5 {[%clk 0:01:32]} 35. Qh8 {[%clk 0:02:06]}  Nf6 {[%clk 0:01:32]} 36. h4 {[%clk 0:02:02]}  gxh4 {[%clk 0:01:28]} 37. Qxh4 {[%clk 0:02:03]}  Qc1+ {[%clk 0:01:26]} 38. Kg2 {[%clk 0:02:03]}  Qxa3 {[%clk 0:01:25]} 39. Qg3+ {[%clk 0:01:57]}  Kf5 {[%clk 0:01:25]} 40. Qf4+ {[%clk 0:01:39]}  Kg6 {[%clk 0:01:25]} 41. Qg3+ {[%clk 0:01:38]}  Kf5 {[%clk 0:01:11]} 42. Qf4+ {[%clk 0:01:37]}  Kg6 {[%clk 0:01:04]} 43. Qg3+ {[%clk 0:01:37]} 1/2-1/2


[Site "https://www.chess.com"]

[Event "Titled Tuesday Blitz March 07 Late 2023"]
[White "Naroditsky, Daniel"]
[Black "Matinian, Nikita"]
[WhiteFideId "2026961"]
[BlackFideId "24129100"]
[WhiteElo "2633"]
[BlackElo "2422"]
[Result "1-0"]
[Round "05"]
[TimeControl "180+2"]
[Date "2023.03.07"]
[WhiteClock "0:00:04"]
[BlackClock "0:00:04"]

1. e4 {[%clk 0:02:58]}  c5 {[%clk 0:02:45]} 2. c3 {[%clk 0:02:58]}  Nf6 {[%clk 0:02:44]} 3. e5 {[%clk 0:02:58]}  Nd5 {[%clk 0:02:44]} 4. Nf3 {[%clk 0:02:59]}  Nc6 {[%clk 0:02:44]} 5. Bc4 {[%clk 0:02:59]}  Nb6 {[%clk 0:02:44]} 6. Bb3 {[%clk 0:03:00]}  d5 {[%clk 0:02:44]} 7. exd6 {[%clk 0:03:00]}  Qxd6 {[%clk 0:02:45]} 8. O-O {[%clk 0:03:01]}  Bg4 {[%clk 0:02:46]} 9. Bxf7+ {[%clk 0:02:59]}  Kd7 {[%clk 0:02:29]} 10. d4 {[%clk 0:02:46]}  cxd4 {[%clk 0:02:20]} 11. cxd4 {[%clk 0:02:47]}  g6 {[%clk 0:01:50]} 12. d5 {[%clk 0:02:17]}  Bxf3 {[%clk 0:01:21]} 13. Qxf3 {[%clk 0:02:18]}  Nd4 {[%clk 0:01:21]} 14. Qg4+ {[%clk 0:02:14]}  Nf5 {[%clk 0:01:20]} 15. Nc3 {[%clk 0:02:09]}  Bg7 {[%clk 0:01:20]} 16. Be6+ {[%clk 0:02:09]}  Ke8 {[%clk 0:01:20]} 17. Ne4 {[%clk 0:02:00]}  Qe5 {[%clk 0:01:16]} 18. Re1 {[%clk 0:02:00]}  Nxd5 {[%clk 0:01:14]} 19. Bxf5 {[%clk 0:01:04]}  gxf5 {[%clk 0:01:14]} 20. Qxf5 {[%clk 0:01:03]}  Qxf5 {[%clk 0:01:02]} 21. Nd6+ {[%clk 0:01:03]}  Kf8 {[%clk 0:00:47]} 22. Nxf5 {[%clk 0:01:04]}  Bf6 {[%clk 0:00:47]} 23. Ne3 {[%clk 0:01:00]}  Nb4 {[%clk 0:00:43]} 24. Rd1 {[%clk 0:00:59]}  Kf7 {[%clk 0:00:43]} 25. a3 {[%clk 0:00:41]}  Nc6 {[%clk 0:00:43]} 26. Rb1 {[%clk 0:00:39]}  Rhd8 {[%clk 0:00:42]} 27. Bd2 {[%clk 0:00:40]}  Rd3 {[%clk 0:00:40]} 28. Be1 {[%clk 0:00:39]}  Rad8 {[%clk 0:00:39]} 29. Rxd3 {[%clk 0:00:39]}  Rxd3 {[%clk 0:00:40]} 30. Kf1 {[%clk 0:00:39]}  Rb3 {[%clk 0:00:38]} 31. Nd1 {[%clk 0:00:39]}  Ne5 {[%clk 0:00:35]} 32. Bc3 {[%clk 0:00:34]}  Nc4 {[%clk 0:00:35]} 33. Rc1 {[%clk 0:00:14]}  Bxc3 {[%clk 0:00:13]} 34. Nxc3 {[%clk 0:00:15]}  Rxb2 {[%clk 0:00:11]} 35. Nd1 {[%clk 0:00:11]}  Nd2+ {[%clk 0:00:08]} 36. Ke1 {[%clk 0:00:11]}  Nb3 {[%clk 0:00:05]} 37. Rc7 {[%clk 0:00:07]}  Ra2 {[%clk 0:00:06]} 38. Rxb7 {[%clk 0:00:06]}  Rxa3 {[%clk 0:00:06]} 39. Ne3 {[%clk 0:00:06]}  a5 {[%clk 0:00:06]} 40. Nd5 {[%clk 0:00:04]}  Ke6 {[%clk 0:00:05]} 41. Nxe7 {[%clk 0:00:02]}  Nc5 {[%clk 0:00:05]} 42. Ra7 {[%clk 0:00:02]}  Nd3+ {[%clk 0:00:04]} 43. Kd2 {[%clk 0:00:03]}  Nxf2 {[%clk 0:00:04]} 44. Nc6 {[%clk 0:00:02]}  Ne4+ {[%clk 0:00:04]} 45. Ke2 {[%clk 0:00:02]}  Nc3+ {[%clk 0:00:04]} 46. Kd2 {[%clk 0:00:02]}  a4 {[%clk 0:00:04]} 47. Nd4+ {[%clk 0:00:02]}  Kd5 {[%clk 0:00:05]} 48. Nc2 {[%clk 0:00:03]}  Ne4+ {[%clk 0:00:05]} 49. Kc1 {[%clk 0:00:04]}  Rc3 {[%clk 0:00:04]} 50. Rxa4 {[%clk 0:00:04]}  Nc5 {[%clk 0:00:03]} 51. Rd4+ {[%clk 0:00:03]}  Kc6 {[%clk 0:00:03]} 52. Rh4 {[%clk 0:00:04]}  Nb3+ {[%clk 0:00:03]} 53. Kb2 {[%clk 0:00:04]}  Rd3 {[%clk 0:00:04]} 54. Nb4+ {[%clk 0:00:04]} 1-0


[Site "https://www.chess.com"]

[Event "Titled Tuesday Blitz March 07 Late 2023"]
[White "Preotu, Razvan"]
[Black "Yu, Yangyi"]
[WhiteFideId "2613280"]
[BlackFideId "8603820"]
[WhiteElo "2407"]
[BlackElo "2783"]
[Result "1/2-1/2"]
[Round "05"]
[TimeControl "180+2"]
[Date "2023.03.07"]
[WhiteClock "0:00:04"]
[BlackClock "0:00:03"]

1. e4 {[%clk 0:02:54]}  c5 {[%clk 0:02:58]} 2. Nf3 {[%clk 0:02:53]}  Nc6 {[%clk 0:02:58]} 3. Bb5 {[%clk 0:02:51]}  e6 {[%clk 0:02:58]} 4. O-O {[%clk 0:02:50]}  Nge7 {[%clk 0:02:58]} 5. Re1 {[%clk 0:02:50]}  b6 {[%clk 0:02:56]} 6. c3 {[%clk 0:02:48]}  a6 {[%clk 0:02:56]} 7. Ba4 {[%clk 0:02:48]}  c4 {[%clk 0:02:56]} 8. Bc2 {[%clk 0:02:45]}  Bb7 {[%clk 0:02:54]} 9. b3 {[%clk 0:02:44]}  b5 {[%clk 0:02:46]} 10. a4 {[%clk 0:02:37]}  Ng6 {[%clk 0:02:45]} 11. Na3 {[%clk 0:02:30]}  Nce5 {[%clk 0:02:35]} 12. Nd4 {[%clk 0:01:53]}  cxb3 {[%clk 0:02:28]} 13. Nxb3 {[%clk 0:01:48]}  b4 {[%clk 0:02:22]} 14. Nb1 {[%clk 0:01:20]}  Qc7 {[%clk 0:02:13]} 15. d4 {[%clk 0:01:19]}  Nc4 {[%clk 0:02:12]} 16. Nc5 {[%clk 0:00:55]}  Bxc5 {[%clk 0:02:01]} 17. dxc5 {[%clk 0:00:55]}  Qxc5 {[%clk 0:01:56]} 18. cxb4 {[%clk 0:00:55]}  Qxb4 {[%clk 0:01:56]} 19. Nd2 {[%clk 0:00:55]}  O-O {[%clk 0:01:51]} 20. Rb1 {[%clk 0:00:53]}  Qc5 {[%clk 0:01:43]} 21. Rxb7 {[%clk 0:00:52]}  Nce5 {[%clk 0:01:38]} 22. Nf1 {[%clk 0:00:20]}  Rfc8 {[%clk 0:01:36]} 23. Rb2 {[%clk 0:00:20]}  Nc4 {[%clk 0:01:36]} 24. Ra2 {[%clk 0:00:20]}  Rc7 {[%clk 0:01:34]} 25. Ne3 {[%clk 0:00:20]}  Rac8 {[%clk 0:01:29]} 26. h3 {[%clk 0:00:18]}  h6 {[%clk 0:01:19]} 27. Bd3 {[%clk 0:00:18]}  Nce5 {[%clk 0:01:17]} 28. Rc2 {[%clk 0:00:18]}  Qb4 {[%clk 0:01:03]} 29. Rxc7 {[%clk 0:00:17]}  Rxc7 {[%clk 0:01:04]} 30. Bxa6 {[%clk 0:00:13]}  Nf4 {[%clk 0:00:59]} 31. Bd2 {[%clk 0:00:08]}  Qxe4 {[%clk 0:00:56]} 32. Be2 {[%clk 0:00:03]}  Qg6 {[%clk 0:00:53]} 33. Kh1 {[%clk 0:00:03]}  d5 {[%clk 0:00:51]} 34. Bf1 {[%clk 0:00:03]}  h5 {[%clk 0:00:50]} 35. g3 {[%clk 0:00:03]}  Nfd3 {[%clk 0:00:48]} 36. Bxd3 {[%clk 0:00:02]}  Nxd3 {[%clk 0:00:49]} 37. Rf1 {[%clk 0:00:02]}  d4 {[%clk 0:00:49]} 38. Ng2 {[%clk 0:00:02]}  e5 {[%clk 0:00:49]} 39. Nh4 {[%clk 0:00:02]}  Qe6 {[%clk 0:00:43]} 40. Qf3 {[%clk 0:00:03]}  e4 {[%clk 0:00:41]} 41. Qf5 {[%clk 0:00:03]}  Qc6 {[%clk 0:00:39]} 42. Kg1 {[%clk 0:00:03]}  g6 {[%clk 0:00:38]} 43. Qb5 {[%clk 0:00:03]}  Qc2 {[%clk 0:00:33]} 44. Bf4 {[%clk 0:00:03]}  Rc8 {[%clk 0:00:29]} 45. Qd5 {[%clk 0:00:03]}  Nxf4 {[%clk 0:00:22]} 46. gxf4 {[%clk 0:00:04]}  e3 {[%clk 0:00:14]} 47. fxe3 {[%clk 0:00:03]}  dxe3 {[%clk 0:00:15]} 48. Nxg6 {[%clk 0:00:03]}  Qxg6+ {[%clk 0:00:14]} 49. Kh1 {[%clk 0:00:03]}  e2 {[%clk 0:00:13]} 50. Re1 {[%clk 0:00:04]}  Re8 {[%clk 0:00:06]} 51. Qg2 {[%clk 0:00:04]}  Qxg2+ {[%clk 0:00:03]} 52. Kxg2 {[%clk 0:00:04]}  Re4 {[%clk 0:00:03]} 53. Kf3 {[%clk 0:00:05]}  Rxa4 {[%clk 0:00:03]} 54. Rxe2 {[%clk 0:00:06]}  Kg7 {[%clk 0:00:03]} 55. Re5 {[%clk 0:00:05]}  Kg6 {[%clk 0:00:03]} 56. Rg5+ {[%clk 0:00:05]}  Kh6 {[%clk 0:00:03]} 57. h4 {[%clk 0:00:06]}  Ra3+ {[%clk 0:00:03]} 58. Ke4 {[%clk 0:00:07]}  Rh3 {[%clk 0:00:02]} 59. Kf5 {[%clk 0:00:05]}  Rxh4 {[%clk 0:00:02]} 60. Rg1 {[%clk 0:00:05]}  Rh2 {[%clk 0:00:01]} 61. Kf6 {[%clk 0:00:05]}  Rf2 {[%clk 0:00:02]} 62. f5 {[%clk 0:00:05]}  h4 {[%clk 0:00:03]} 63. Rg8 {[%clk 0:00:03]}  Kh5 {[%clk 0:00:03]} 64. Rg5+ {[%clk 0:00:03]}  Kh6 {[%clk 0:00:03]} 65. Rg8 {[%clk 0:00:04]}  Kh5 {[%clk 0:00:03]} 66. Rg5+ {[%clk 0:00:04]}  Kh6 {[%clk 0:00:03]} 67. Rg8 {[%clk 0:00:04]} 1/2-1/2


[Site "https://www.chess.com"]

[Event "Titled Tuesday Blitz March 07 Late 2023"]
[White "Sai Krishna G V"]
[Black "Caruana, Fabiano"]
[WhiteFideId "5028280"]
[BlackFideId "2020009"]
[WhiteElo "2359"]
[BlackElo "2818"]
[Result "0-1"]
[Round "05"]
[TimeControl "180+2"]
[Date "2023.03.07"]
[WhiteClock "0:00:07"]
[BlackClock "0:00:40"]

1. e4 {[%clk 0:03:00]}  e5 {[%clk 0:02:59]} 2. Nf3 {[%clk 0:03:01]}  Nc6 {[%clk 0:02:59]} 3. Bb5 {[%clk 0:03:01]}  a6 {[%clk 0:03:00]} 4. Ba4 {[%clk 0:03:01]}  Nf6 {[%clk 0:03:00]} 5. O-O {[%clk 0:03:02]}  b5 {[%clk 0:03:00]} 6. Bb3 {[%clk 0:03:02]}  Bc5 {[%clk 0:03:00]} 7. Nxe5 {[%clk 0:03:02]}  Nxe5 {[%clk 0:02:59]} 8. d4 {[%clk 0:03:02]}  Bxd4 {[%clk 0:03:00]} 9. Qxd4 {[%clk 0:03:03]}  d6 {[%clk 0:03:01]} 10. f4 {[%clk 0:03:01]}  Nc6 {[%clk 0:03:01]} 11. Qd3 {[%clk 0:02:55]}  O-O {[%clk 0:02:57]} 12. Nc3 {[%clk 0:02:54]}  Bb7 {[%clk 0:02:45]} 13. Nd5 {[%clk 0:02:23]}  Na5 {[%clk 0:02:23]} 14. Bd2 {[%clk 0:01:48]}  Nxb3 {[%clk 0:02:21]} 15. axb3 {[%clk 0:01:42]}  Re8 {[%clk 0:02:11]} 16. Rae1 {[%clk 0:01:23]}  c5 {[%clk 0:02:07]} 17. Nxf6+ {[%clk 0:01:03]}  Qxf6 {[%clk 0:02:06]} 18. Bc3 {[%clk 0:01:03]}  Qe7 {[%clk 0:02:01]} 19. Qg3 {[%clk 0:00:58]}  f6 {[%clk 0:01:41]} 20. e5 {[%clk 0:00:58]}  b4 {[%clk 0:01:39]} 21. exf6 {[%clk 0:00:32]}  Qf7 {[%clk 0:01:39]} 22. Bd2 {[%clk 0:00:32]}  Qxf6 {[%clk 0:01:38]} 23. f5 {[%clk 0:00:28]}  Rxe1 {[%clk 0:01:33]} 24. Rxe1 {[%clk 0:00:29]}  Rf8 {[%clk 0:01:23]} 25. h4 {[%clk 0:00:20]}  h6 {[%clk 0:01:13]} 26. Bf4 {[%clk 0:00:16]}  Qxf5 {[%clk 0:00:58]} 27. Bxd6 {[%clk 0:00:16]}  Rf6 {[%clk 0:00:49]} 28. h5 {[%clk 0:00:08]}  Qxh5 {[%clk 0:00:45]} 29. Re7 {[%clk 0:00:07]}  Rg6 {[%clk 0:00:40]} 0-1


[Site "https://www.chess.com"]